Cogmind - Beta 12 @@@ ROGUE MODE // 2024.02.11 @ 15:53:37 Player: puppuppit Result: Destroyed by B-86 Titan with Railgun Performance ------------- Evolutions (6) 3000 Regions Visited (29) 5800 Robots Destroyed (405) 2025 Value Destroyed (15939) 15939 Prototype IDs (77) 1540 Alien Tech Used (0) 0 Bonus (7559) 7559 TOTAL SCORE: 35863 Bonus ------- Triggered High Security 500 High Alert Combat Kills 4973 Follower Combat Kills 2598 Entered Garrisons 400 Aligned with FarCom 300 Met Imprinter 300 Met Warlord at Base 500 MAIN.C Attacked Warlord 500 Warlord Defense Kills 302 Friendly Fire -2814 Cogmind --------- Core Integrity 0/1150 Matter 300/300 Energy 99/100 System Corruption 0% Temperature Cool (0) Movement Core (50) Location -4/Extension Parts ------- > --- POWER (1) -------- (None) > --- PROPULSION (5) --- (None) > --- UTILITY (9) ------ 0b10 Decoder Chip [Scout] Improved Target Analyzer Improved Hacking Suite System Shield Improved System Shield > --- WEAPON (4) ------- (None) > --- INVENTORY (5) ---- Light Antimatter Reactor Encrypted Comm Array System Restoration Module Improved Field Recycling Unit (109) Peak State ------------ > --- POWER ------------ Light Quantum Reactor > --- PROPULSION ------- Improved Antigrav System Combat Linear Gravjet Combat Linear Gravjet Combat Linear Gravjet Combat Linear Gravjet > --- UTILITY ---------- 0b10 Decoder Chip [Scout] Advanced Targeting Computer Improved Weapon Cycler Layered Light Armor Plating Improved Force Field Improved Hacking Suite Advanced Hacking Suite Improved System Shield Improved System Shield > --- WEAPON ----------- Thermic Laser Magnetic Acceleration Cannon Hypervelocity Gauss Cannon Hypervelocity Gauss Cannon > --- INVENTORY -------- Antimatter Reactor Matter Compressor Matter Compressor Encrypted Comm Array Magnetic Acceleration Cannon [Rating: 122] Favorites ----------- Power Light Angular Momentum Engine Engine Light Angular Momentum Engine Power Core Neutrino Core Reactor Light Quantum Reactor Propulsion Combat Linear Gravjet Leg Flexi-carbon Leg Wheel Wheel Hover Unit Combat Linear Gravjet Flight Unit VTOL Module Utility Small Storage Unit Device Encrypted Comm Array Storage Small Storage Unit Processor Advanced Targeting Computer Hackware Improved System Shield Protection Improved Propulsion Shielding Weapon XL Autogun Subcomponent Energy Gun Thermic Laser Energy Cannon Neutron Cannon Ballistic Gun XL Autogun Subcomponent Ballistic Cannon Hypervelocity Gauss Cannon Launcher Smartbomb Launcher Special Weapon RU-N14's Throwing Claymores Piercing Weapon Vortex Lance Special Melee Weapon Datajack Build | -11 -10 -10 -9 -9 -9 -8 -8 -7 -7 -7 -7 -7 -6 -6 -6 -6 -6 -6 -5 -5 -5 -5 -5 -5 -5 -5 -4 -4 -4 ------- Run | Jun Mat Min Mat Min Exi Min Mat Fac Was Fac Gar Fac Fac Was Fac Low Low Zio Pro Fac Was Fac Gar Fac Upp War Pro Fac Ext Slots Evolved 12 | . . . 2 . . . 2 2 . . . . 2 . . . . . . 2 . . . . . . . 2 . Power . | . . . . . . . . . . . . . . . . . . . . . . . . . . . . . . Propulsion 3 | . . . 2 . . . . . . . . . . . . . . . . . . . . . . . . 1 . Utility 7 | . . . . . . . . 2 . . . . 2 . . . . . . 2 . . . . . . . 1 . Weapon 2 | . . . . . . . 2 . . . . . . . . . . . . . . . . . . . . . . Parts Attached 359 | 8 19 8 27 5 3 2 10 5 1 5 4 13 3 1 8 3 . 14 3 21 5 39 32 21 4 6 5 58 26 Power 36 | 1 2 3 4 . . . . 1 . 2 1 . . . 1 1 . . . 2 1 2 4 1 . . 2 5 3 Engine 19 | 1 2 3 3 . . . . 1 . 2 1 . . . 1 1 . . . . . 2 2 . . . . . . Core 4 | . . . 1 . . . . . . . . . . . . . . . . 2 1 . . . . . . . . Reactor 13 | . . . . . . . . . . . . . . . . . . . . . . . 2 1 . . 2 5 3 Propulsion 85 | 3 7 1 14 3 1 . 8 1 . . 1 5 . . 3 . . . 1 4 3 9 5 1 . . . 12 3 Treads . | . . . . . . . . . . . . . . . . . . . . . . . . . . . . . . Leg 2 | . . . . . . . . . . . . . . . . . . . . . . . . . . . . . 2 Wheel 5 | 3 2 . . . . . . . . . . . . . . . . . . . . . . . . . . . . Hover 72 | . 5 1 14 1 1 . 8 1 . . 1 5 . . 3 . . . 1 4 3 9 5 1 . . . 8 1 Flight 6 | . . . . 2 . . . . . . . . . . . . . . . . . . . . . . . 4 . Utility 139 | 2 3 . 3 . . . 1 3 1 3 2 4 3 1 4 2 . 8 . 10 1 11 12 13 4 3 3 32 10 Device 75 | 1 . . . . . . . 3 . 2 . 2 1 1 2 2 . 3 . 6 1 6 6 6 3 1 2 18 9 Storage 9 | 1 1 . 1 . . . 1 . . . . . . . . . . . . . . 1 . . . . . 4 . Processor 23 | . 2 . 1 . . . . . . . . 1 . . 1 . . 4 . 1 . 1 3 4 . . . 4 1 Hackware 18 | . . . . . . . . . . 1 1 . 2 . 1 . . 1 . 3 . 3 . 3 1 1 . 1 . Protection 14 | . . . 1 . . . . . 1 . 1 1 . . . . . . . . . . 3 . . 1 1 5 . Artifact . | . . . . . . . . . . . . . . . . . . . . . . . . . . . . . . Weapon 99 | 2 7 4 6 2 2 2 1 . . . . 4 . . . . . 6 2 5 . 17 11 6 . 3 . 9 10 Energy Gun 7 | 1 1 . 1 . . . . . . . . . . . . . . . . . . . . . . 1 . 2 1 Energy Cannon 9 | . . . 1 . . . . . . . . . . . . . . . . . . 8 . . . . . . . Ballistic Gun 49 | 1 2 4 . . . 1 1 . . . . 4 . . . . . 4 1 4 . 7 9 2 . . . 3 6 Ballistic Cannon 16 | . 3 . 2 . . . . . . . . . . . . . . . . . . 1 . 2 . 1 . 4 3 Launcher 13 | . . . 2 2 2 1 . . . . . . . . . . . 2 . . . . 2 2 . . . . . Special Weapon 3 | . . . . . . . . . . . . . . . . . . . 1 1 . 1 . . . . . . . Impact Weapon . | . . . . . . . . . . . . . . . . . . . . . . . . . . . . . . Slashing Weapon . | . . . . . . . . . . . . . . . . . . . . . . . . . . . . . . Piercing Weapon 1 | . . . . . . . . . . . . . . . . . . . . . . . . . . 1 . . . Special Melee Weapon 1 | . 1 . . . . . . . . . . . . . . . . . . . . . . . . . . . . Unidentified Prototypes 20 | . . . 2 . . . . . . 1 . 3 . . . . . 5 1 . . 5 . . . 1 . 2 . Corrupted Parts 1 | . . . . . . . . . . . . . . . . . . . . . . . . . . . . . 1 System Corruption 2 | . . . . . . . . . . . . . . . . . . . . . . . . . . . . . 2 Parts Lost 80 | . 4 . 4 2 . . . . . . 1 1 . . . 1 . . . 1 4 4 5 8 3 2 . 23 17 Power 6 | . 2 . . . . . . . . . . . . . . . . . . . . 1 . 1 . . . 1 1 Propulsion 20 | . 1 . 4 1 . . . . . . . . . . . . . . . . 1 1 1 . . . . 6 5 Utility 31 | . 1 . . . . . . . . . 1 1 . . . 1 . . . . 1 2 4 2 3 1 . 9 5 Weapon 23 | . . . . 1 . . . . . . . . . . . . . . . 1 2 . . 5 . 1 . 7 6 Highest Loss Streak 14 | . 4 . 1 1 . . . . . . 1 1 . . . 1 . . . 1 4 2 2 4 3 2 . 6 14 To Critical Strikes 2 | . . . . . . . . . . . . . . . . . . . . . . . . . . . . 1 1 Average Slot Usage (%) 90 | . 90 100 99 86 77 89 71 73 76 75 76 75 84 100 99 99 100 99 100 99 82 92 91 97 93 92 94 92 80 Engine 4 | . 9 14 7 11 11 11 9 7 7 7 7 7 6 6 5 6 6 6 6 4 . 2 4 . . . . . . Reactor 1 | . . . . . . . . . . . . . . . . . . . . . . . . 4 5 5 5 5 4 Hover 25 | . 22 28 43 38 44 44 35 30 30 30 30 29 26 26 25 26 26 26 26 23 21 23 19 23 23 23 23 24 10 Device 7 | . 3 . . . . . . 11 8 7 7 11 11 13 16 19 20 15 13 5 2 5 7 6 8 8 4 10 4 Storage 5 | . 14 14 11 11 11 11 9 7 7 7 7 7 6 6 6 6 6 6 6 5 5 4 5 5 1 . . . . Processor 11 | . 8 14 9 11 11 11 9 7 7 7 7 7 6 6 6 6 6 10 13 14 11 11 15 22 17 17 13 11 14 Hackware 10 | . . . . . . . . . . 2 2 . . 13 8 6 6 6 6 18 23 21 12 7 17 18 23 19 16 Protection 1 | . . . 1 . . . . . 6 4 4 2 . . . . . . . . . . 3 1 . . 3 2 4 Ballistic Gun 11 | . 5 26 11 3 . 1 9 7 7 7 7 7 26 26 26 26 26 25 26 19 11 12 18 14 . . . 1 9 Ballistic Cannon 2 | . 9 1 3 . . . . . . . . . . . . . . . . . . . . 3 11 7 11 11 2 Naked Turns . | . . . . . . . . . . . . . . . . . . . . . . . . . . . . . . Heaviest Build 68 | 13 13 12 23 23 25 22 28 36 36 36 35 38 34 34 38 38 37 37 36 40 40 46 51 56 54 54 55 68 43 Greatest Support 68 | 26 20 12 24 30 30 30 39 36 36 36 36 42 38 42 39 39 39 39 41 41 40 42 56 56 56 56 56 68 40 Greatest Overweight (x) 2 | . . . . . . . . . . . . 1 . . . . . . . . . 1 1 1 . . . 1 2 Average Overweight (x) . | . . . . . . . . . . . . . . . . . . . . . . . . . . . . . . Largest Inventory Capacity 8 | 8 8 8 8 8 8 8 8 8 8 8 8 8 8 8 8 8 8 8 8 8 8 8 8 8 8 5 5 5 5 Average Capacity 7 | 7 8 8 8 8 8 8 8 8 8 8 8 8 8 8 8 8 8 8 8 8 8 7 8 8 6 5 5 5 5 Most Carried 8 | 6 8 8 8 8 8 7 8 8 8 8 8 8 8 6 8 8 8 8 8 8 8 8 8 8 8 5 5 5 5 Average Carried 7 | 2 7 7 7 7 7 7 7 7 8 7 7 7 7 6 7 7 7 7 8 7 7 7 7 7 6 4 5 4 4 Final Capacity 8 | 8 8 8 8 8 8 8 8 8 8 8 8 8 8 8 8 8 8 8 8 8 8 8 8 8 5 5 5 5 5 Final Carried 8 | 6 8 8 8 8 8 7 8 8 8 8 8 7 6 6 7 8 8 8 8 8 6 8 8 8 5 5 5 5 4 Class Distribution -------------------- 24% | Hacker-Mutant 21% | Gunner 12% | Mutant 11% | Hacker-Skirmisher 11% | Hacker-Gunner 6% | Scavenger-Mutant 4% | Skirmisher 3% | Tank Dominant Class ---------------- Mutant | -10/Materials Scavenger-Mutant | -10/Mines Mutant | -9/Materials Mutant | -9/Mines Mutant | -9/Exiles Mutant | -8/Mines Skirmisher | -8/Materials Tank | -7/Factory Tank | -7/Waste Gunner | -7/Factory Gunner | -7/Garrison Gunner | -7/Factory Skirmisher | -6/Factory Hacker-Skirmisher | -6/Waste Gunner | -6/Factory Gunner | -6/Lower Caves Gunner | -6/Lower Caves Gunner | -6/Zion Gunner | -5/Proximity Caves Hacker-Gunner | -5/Factory Hacker-Gunner | -5/Waste Hacker-Skirmisher | -5/Factory Hacker-Gunner | -5/Garrison Gunner | -5/Factory Hacker-Mutant | -5/Upper Caves Hacker-Mutant | -5/Warlord Hacker-Mutant | -4/Proximity Caves Hacker-Mutant | -4/Factory Scavenger-Gunner | -4/Extension Resources | -11 -10 -10 -9 -9 -9 -8 -8 -7 -7 -7 -7 -7 -6 -6 -6 -6 -6 -6 -5 -5 -5 -5 -5 -5 -5 -5 -4 -4 -4 ----------- Run | Jun Mat Min Mat Min Exi Min Mat Fac Was Fac Gar Fac Fac Was Fac Low Low Zio Pro Fac Was Fac Gar Fac Upp War Pro Fac Ext Matter Collected 15936 | 183 564 391 855 198 111 35 676 50 95 395 843 1817 . 154 372 191 . 261 183 579 . 1778 1251 1654 75 790 210 1533 692 Remotely . | . . . . . . . . . . . . . . . . . . . . . . . . . . . . . . Salvage Created 17561 | 139 401 294 854 185 . . 910 82 . 474 1082 2297 . 475 687 253 . . 53 888 . 2655 1681 2143 32 94 152 1187 543 Parts 833 | 12 28 22 66 16 . 1 46 2 . 22 41 84 . 12 29 14 . . 4 45 . 138 60 87 1 1 7 65 30 Haulers Intercepted 24 | . 2 . 5 . . . 5 . . 1 . 2 . . 2 . . . . . . 3 . 1 . . . 3 . Recyclers Shooed 11 | . . . 1 1 . . . . . . . 1 . . . . . . . 1 . 1 . 1 . . . 5 . Parts Field Recycled 37 | . . . . . . . . . . . . . . . . . . . . . . . . . . . . 15 22 Retrieved Matter 443 | . . . . . . . . . . . . . . . . . . . . . . . . . . . . 208 235 Parts Self-Destructed 26 | . . . . . . . . . . . . . . . . 12 . . 3 . . . . . 2 . 9 . . Prevented 1 | . . . . . . . . . . . . . . . . 1 . . . . . . . . . . . . . Kills | -11 -10 -10 -9 -9 -9 -8 -8 -7 -7 -7 -7 -7 -6 -6 -6 -6 -6 -6 -5 -5 -5 -5 -5 -5 -5 -5 -4 -4 -4 ------- Run | Jun Mat Min Mat Min Exi Min Mat Fac Was Fac Gar Fac Fac Was Fac Low Low Zio Pro Fac Was Fac Gar Fac Upp War Pro Fac Ext Combat Hostiles Destroyed 268 | . 6 11 12 6 . 3 12 . . 8 19 34 . 2 4 4 . . 1 15 . 37 27 30 3 2 5 20 7 Guns 193 | . 4 7 8 1 . . 12 . . 7 19 34 . 2 4 4 . . 1 9 . 26 27 16 . . . 6 6 Cannons 40 | . 1 4 1 . . . . . . . . . . . . . . . . . . 6 . 7 1 . 5 14 1 AOE 35 | . 1 . 3 5 . 3 . . . 1 . . . . . . . . . 6 . 5 . 7 2 2 . . . Classes Destroyed 24 | 2 6 2 1 1 . . . . . . 1 2 . 1 . 1 . . . . . . 1 5 . . . . 1 Worker 30 | . 1 1 4 . . . . . . 2 . 3 . . . . . . . . . 8 . 7 . . . 4 . Builder 14 | . . 1 3 2 . . . . . 1 . . . . . . . . . . . 2 . 2 . . . 3 . Tunneler 7 | 3 . 1 . . . . . . . . . . . . . . . . . 2 . . . . . . . 1 . Hauler 24 | . 2 . 5 . . . 5 . . 1 . 2 . . 2 . . . . . . 3 . 1 . . . 3 . Recycler 14 | 1 1 1 2 1 . . 1 . . . . 2 . . 1 . . . . 1 . 2 . 1 . . . . . Minesweeper 1 | . . . . . . . . . . . . . . . . 1 . . . . . . . . . . . . . Mechanic 5 | . . 1 1 . . . . 1 . . . . . . 1 . . . . 1 . . . . . . . . . Operator 6 | . 2 . 1 . . . . . . . . 1 . . . . . . . 1 . 1 . . . . . . . Drone 2 | . . . . . . . . . . . . . . . . . . . . . . . . 1 . . 1 . . Watcher 29 | . 2 . 3 . . . 2 1 . . . 2 . . 2 . . . . 2 . 6 1 4 . . . 3 1 Swarmer 53 | . 3 10 . 3 . 3 4 . . 2 3 . . . . . . . . . . 9 3 4 1 . 3 5 . Cutter 3 | . . . . . . . . . . . . . . . . . . . . . . . . 3 . . . . . Saboteur 1 | . . . . . . . . . . . . . . . . . . . . . . . . 1 . . . . . Grunt 114 | . 3 1 9 2 . . 8 . . 5 9 19 . . 1 4 . . . 9 . 16 15 8 . . . . 5 Brawler 7 | . . . . . . . . . . . . 2 . . . . . . . . . 1 1 2 . 1 . . . Duelist 5 | . . . . 1 . . . . . . . 4 . . . . . . . . . . . . . . . . . Protector 1 | . . . . . . . . . . . . . . . . . . . . . . . . 1 . . . . . Sentry 27 | . . . 3 . . . . . . 1 4 5 . . 1 . . . . 3 . 2 3 1 . . 1 3 . Specialist 1 | . . . . . . . . . . . . . . . . . . . . . . . . . . . . . 1 Hunter 22 | . . . . . . . . . . . 3 . . . 1 . . . . 1 . 5 2 4 2 1 . 2 1 Programmer 28 | . . . . . . . . . . . . 4 . . 1 . . . 1 2 . 4 1 5 . . . 10 . Behemoth 2 | . . . . . . . . . . . . . . . . . . . . . . . 2 . . . . . . Compactor 2 | . . . . . . . . . . . . . . 2 . . . . . . . . . . . . . . . Wasp 1 | . . . . . . . . . . 1 . . . . . . . . . . . . . . . . . . . Thug 2 | . . . . . . . . . . . 1 1 . . . . . . . . . . . . . . . . . Butcher 3 | . . . . . . . . . . . 2 . . . . . . . . . . 1 . . . . . . . Fireman 2 | . . . . . . . . . . . . . . . . . . . . . . . . 2 . . . . . Best Kill Streak 8 | 2 7 4 8 6 . 3 5 1 . 4 7 7 . 2 2 3 . . 1 8 . 7 5 6 2 1 3 8 2 Combat Bots Only 7 | . 5 3 4 3 . 3 4 . . 3 7 6 . 2 1 2 . . 1 6 . 4 5 4 2 1 3 6 2 Max Kills in Single Turn 4 | 1 1 2 3 3 . 2 1 1 . 3 3 2 . 1 1 1 . . 1 3 . 4 2 2 1 1 1 2 2 Gunslinging 1 | . . . . . . . . . . . . . . . . . . . . . . 1 1 . . . . . 1 Exploded 3 | . 1 . 1 3 . 2 . . . 1 . . . . . . . . . 2 . 2 . 2 1 1 . . . Melee . | . . . . . . . . . . . . . . . . . . . . . . . . . . . . . . Uniques/NPCs Destroyed . | . . . . . . . . . . . . . . . . . . . . . . . . . . . . . . Combat | -11 -10 -10 -9 -9 -9 -8 -8 -7 -7 -7 -7 -7 -6 -6 -6 -6 -6 -6 -5 -5 -5 -5 -5 -5 -5 -5 -4 -4 -4 -------- Run | Jun Mat Min Mat Min Exi Min Mat Fac Was Fac Gar Fac Fac Was Fac Low Low Zio Pro Fac Was Fac Gar Fac Upp War Pro Fac Ext Damage Taken 13424 | . 382 244 375 140 . . 50 . . 95 314 619 . . 443 142 39 . 60 361 104 1217 1009 1815 604 137 171 2917 2186 Core 2635 | . 102 75 38 16 . . . . . 16 108 105 . . 83 . . . 10 26 . 179 195 368 96 . 68 496 654 Absorbed by Shields 1634 | . . . . . . . . . . . . 118 . . 35 34 15 . 20 50 19 251 606 32 52 38 79 10 275 Redirected to Shielding 219 | . . . . . . . . . . 8 . 83 . . . . . . . . . . 14 13 . . . . 101 Regen/Repaired (Parts) 824 | . . . 20 . . . . . . 8 17 81 . . 41 . . . . 89 . 103 . 210 . 137 . 118 . Core Remaining (%) 68 | 100 . 29 . . . 86 100 . . . . 67 . . . . . . 89 . . . . . . . 6 . . Volleys Fired 952 | 8 45 42 56 4 . 3 34 2 . 23 53 91 . 17 31 11 . . 3 45 . 118 81 88 11 9 12 130 35 Largest 4 | 2 2 2 2 2 . 1 1 1 . 1 1 1 . 4 4 4 . . 4 4 . 4 4 4 2 2 3 4 4 Hottest 239 | 60 75 55 69 60 . 36 60 60 . 60 60 60 . 80 80 80 . . 80 80 . 189 138 201 122 146 207 239 158 Shots Fired 2189 | 16 80 84 97 8 . 3 34 2 . 23 53 90 . 68 124 44 . . 12 155 . 340 263 256 18 14 31 276 98 Gun 1702 | 16 51 76 58 4 . . 34 2 . 23 53 90 . 68 124 44 . . 12 146 . 271 259 199 . 5 7 70 90 Cannon 427 | . 29 8 21 . . . . . . . . . . . . . . . . . . 68 . 44 14 5 24 206 8 Launcher 50 | . . . 18 4 . 3 . . . . . . . . . . . . . . . . 4 13 4 4 . . . Special 10 | . . . . . . . . . . . . . . . . . . . . 9 . 1 . . . . . . . Kinetic 1995 | 8 50 84 74 4 . . 34 2 . 23 53 90 . 68 124 44 . . 12 146 . 274 259 243 14 5 24 264 96 Thermal 79 | . . . . . . . . . . . . . . . . . . . . . . 65 . . . 5 7 . 2 Explosive 46 | . . . 18 4 . 3 . . . . . . . . . . . . . 9 . 1 . 3 4 4 . . . Electromagnetic 69 | 8 30 . 5 . . . . . . . . . . . . . . . . . . . 4 10 . . . 12 . Robot Hit Streak 22 | 6 13 8 7 2 . . 8 11 . 8 13 22 . 22 14 12 . . 7 14 . 17 17 11 5 4 5 9 11 Robot Miss Streak 13 | 1 6 5 5 4 . . 5 1 . 5 4 5 . 2 4 6 . . 3 5 . 5 4 13 2 1 1 9 5 Penetration Max 2 | . . . . . . . . . . . . . . . . . . . . . . 1 1 1 . . . 1 2 Secondary Targets 17 | . . 1 . . . . . . . . . . . 1 . . . . . . . 7 6 1 . . . . 1 Max Gunslinging Chain 1 | . . 1 . . . . . . . . . . . 1 . . . . . . . 1 1 1 . . . . 1 Shots Hit Robots 1338 | 10 47 53 70 1 . . 33 2 . 19 43 82 . 59 81 23 . . 9 94 . 193 145 131 9 7 18 155 54 Core Hits 782 | 4 19 29 59 11 . 4 29 3 . 21 43 89 . 10 22 10 . . 2 48 . 104 64 85 9 17 6 67 27 Critical Kills 37 | . . . . . . . . . . . . . . . . . . . . . . 4 3 16 1 . 3 8 2 Critical Parts Destroyed 66 | . . 1 . . . . . . . . . . . . . . . . . . . 6 6 18 4 3 4 21 3 Critical Strikes 129 | . 1 2 2 . . . . . . . . . . . . . . . . 1 . 11 10 35 5 4 10 42 6 Burn 2 | . . . . . . . . . . . . . . . . . . . . . . . . . . 1 1 . . Destroy 110 | . . 1 . . . . . . . . . . . . . . . . . . . 11 10 35 5 3 9 30 6 Blast 16 | . 1 1 2 . . . . . . . . . . . . . . . . . . . . . . . . 12 . Sever 1 | . . . . . . . . . . . . . . . . . . . . 1 . . . . . . . . . Melee Attacks . | . . . . . . . . . . . . . . . . . . . . . . . . . . . . . . Impact . | . . . . . . . . . . . . . . . . . . . . . . . . . . . . . . Slashing . | . . . . . . . . . . . . . . . . . . . . . . . . . . . . . . Piercing . | . . . . . . . . . . . . . . . . . . . . . . . . . . . . . . Sneak Attacks . | . . . . . . . . . . . . . . . . . . . . . . . . . . . . . . Combat Hostiles . | . . . . . . . . . . . . . . . . . . . . . . . . . . . . . . Follow-up Attacks . | . . . . . . . . . . . . . . . . . . . . . . . . . . . . . . Damage Inflicted 47536 | 143 679 809 1954 650 . 289 1609 103 . 1380 2983 5543 . 1231 1990 578 . . 220 3644 . 7082 3904 5049 662 579 295 4596 1564 Guns 34216 | 143 352 677 963 35 . . 1609 103 . 1380 2983 5543 . 1231 1783 578 . . 220 1981 . 4352 3781 3714 . 54 36 1286 1412 Cannons 6325 | . 273 131 203 . . . . . . . . . . . . . . . . . . 1453 . 434 108 70 259 3242 152 Explosions 6712 | . 54 . 788 594 . 289 . . . . . . . . 207 . . . . 1457 . 1222 123 901 554 455 . 68 . Melee . | . . . . . . . . . . . . . . . . . . . . . . . . . . . . . . Ramming 39 | . . 1 . 21 . . . . . . . . . . . . . . . . . 17 . . . . . . . Kinetic 38373 | 91 369 808 1087 35 . . 1609 103 . 1380 2983 5543 . 1231 1783 578 . . 220 1981 . 4352 3781 4148 108 70 259 4317 1537 Thermal 2392 | . 54 . 36 . . . . . . . . . . . 207 . . . . . . 1868 . 42 . 54 36 68 27 Explosive 5483 | . . . 752 594 . 289 . . . . . . . . . . . . . 1457 . 807 . 575 554 455 . . . Electromagnetic 1005 | 52 256 . 79 . . . . . . . . . . . . . . . . . . . 123 284 . . . 211 . Impact . | . . . . . . . . . . . . . . . . . . . . . . . . . . . . . . Slashing 244 | . . . . . . . . . . . . . . . . . . . . 206 . 38 . . . . . . . Piercing . | . . . . . . . . . . . . . . . . . . . . . . . . . . . . . . Highest Corruption 7 | . . . . 4 4 4 . . . . 1 4 . . 2 2 2 7 1 . 5 5 . 6 7 7 . 5 2 Average Corruption 2 | . . . . 4 4 4 . . . . 1 1 . . 1 2 2 3 1 . 5 3 . 4 5 7 . 2 1 Corruption Purged 21 | . . . . . . . . . . . . . . . . . . . . . . 7 . 2 . . . 10 2 Corruption Blocked 13 | . . . . . . . . . . . . . . . . . . . . . . . . 13 . . . . . Effects 79 | . . . . 3 7 3 . . . . 5 7 . . . 5 2 2 . . 1 3 . 22 4 . . 15 . Message Errors 17 | . . . . 1 1 . . . . . . 2 . . . 1 . 1 . . . . . 4 3 . . 4 . Matter Fused 16 | . . . . . 3 2 . . . . 2 1 . . . . . . . . . 1 . 3 1 . . 3 . Heat Flow Errors 13 | . . . . . 1 1 . . . . 1 . . . . . 1 1 . . . 1 . 5 . . . 2 . Energy Discharges 11 | . . . . . . . . . . . 1 1 . . . 3 . . . . . 1 . 2 . . . 3 . Parts Rejected 3 | . . . . . . . . . . . 1 . . . . . . . . . 1 . . . . . . 1 . Parts Fused 1 | . . . . . . . . . . . . . . . . 1 . . . . . . . . . . . . . Data Loss (minor) 9 | . . . . 2 2 . . . . . . 1 . . . . 1 . . . . . . 2 . . . 1 . Data Loss (major) 5 | . . . . . . . . . . . . 1 . . . . . . . . . . . 3 . . . 1 . Alerts 1 | . . . . . . . . . . . . . . . . . . . . . . . . 1 . . . . . Weapon Failures 3 | . . . . . . . . . . . . 1 . . . . . . . . . . . 2 . . . . . Overload Shots . | . . . . . . . . . . . . . . . . . . . . . . . . . . . . . . Overflow Damage 500 | . 48 . 8 37 . 26 . . . . . . . . . . . . . 37 . 149 . 23 32 . . 130 10 Projectiles 246 | . . . . . . . . . . . . . . . . . . . . 10 . 82 . 14 . . . 130 10 Explosions 254 | . 48 . 8 37 . 26 . . . . . . . . . . . . . 27 . 67 . 9 32 . . . . Melee . | . . . . . . . . . . . . . . . . . . . . . . . . . . . . . . Knockbacks 38 | . 3 1 1 1 . . . . . . . . . . . . . . . . . 1 . 3 1 . . 27 . Impact 2 | . . . . 1 . . . . . . . . . . . . . . . . . 1 . . . . . . . Kinetic 35 | . 3 1 1 . . . . . . . . . . . . . . . . . . . . 3 1 . . 26 . Secondary 1 | . . . . . . . . . . . . . . . . . . . . . . . . . . . . 1 . Self-Inflicted Damage 393 | . 53 . 102 10 . . . . . . . . . . 33 . . . . . . 66 . 96 33 . . . . Shots 11 | . 1 . 2 . . . . . . . . . . . 1 . . . . . . 1 . 5 1 . . . . Rammed 3 | . . 1 . 1 . . . . . . . . . . . . . . . . . 1 . . . . . . . Targets Rammed 3 | . . 1 . 1 . . . . . . . . . . . . . . . . . 1 . . . . . . . Kicked . | . . . . . . . . . . . . . . . . . . . . . . . . . . . . . . Crushed . | . . . . . . . . . . . . . . . . . . . . . . . . . . . . . . Highest Temperature 531 | . 214 36 105 22 203 230 339 43 . 184 316 501 . 144 180 273 61 184 144 314 . 243 253 406 357 266 425 531 68 Average Temperature 109 | . 65 9 28 11 104 100 98 23 . 74 119 122 . 64 70 131 41 106 64 79 . 57 111 144 198 107 194 129 24 Received Heat Transfer 1850 | . 126 18 93 . . . 18 . . 18 117 201 . . 74 36 . . . 54 . 122 225 245 9 . 22 228 244 Effects 46 | . . . . . . . 1 . . . 3 5 . . . . . . . 2 . 1 1 12 1 . 4 16 . Shutdowns 6 | . . . . . . . . . . . . 1 . . . . . . . . . . . 1 . . 1 3 . Energy Bleed 13 | . . . . . . . . . . . . . . . . . . . . 1 . 1 1 4 1 . 2 3 . Interference 20 | . . . . . . . . . . . 3 2 . . . . . . . 1 . . . 6 . . . 8 . Matter Decay 3 | . . . . . . . 1 . . . . . . . . . . . . . . . . 1 . . 1 . . Short Circuit 2 | . . . . . . . . . . . . 1 . . . . . . . . . . . . . . . 1 . Damage (minor) 1 | . . . . . . . . . . . . 1 . . . . . . . . . . . . . . . . . Damage (major) 1 | . . . . . . . . . . . . . . . . . . . . . . . . . . . . 1 . Siege Activations . | . . . . . . . . . . . . . . . . . . . . . . . . . . . . . . Robots Corrupted . | . . . . . . . . . . . . . . . . . . . . . . . . . . . . . . Combat Hostiles . | . . . . . . . . . . . . . . . . . . . . . . . . . . . . . . Parts Fried 5 | . 1 . . . . . . . . . . . . . . . . . . . . . . . . . . 4 . Impact Corruptions . | . . . . . . . . . . . . . . . . . . . . . . . . . . . . . . Robots Melted . | . . . . . . . . . . . . . . . . . . . . . . . . . . . . . . Combat Hostiles . | . . . . . . . . . . . . . . . . . . . . . . . . . . . . . . Parts Melted . | . . . . . . . . . . . . . . . . . . . . . . . . . . . . . . Heat Transferred 1174 | . 50 . 50 . . . . . . . . . . . 100 . . . . . . 437 . . . 250 200 50 37 Parts Sabotaged . | . . . . . . . . . . . . . . . . . . . . . . . . . . . . . . Parts Stolen . | . . . . . . . . . . . . . . . . . . . . . . . . . . . . . . Parts Stripped . | . . . . . . . . . . . . . . . . . . . . . . . . . . . . . . Power Chain Reactions 8 | . 1 . 1 . . . . . . . . . . . . . . . . . . 4 . 2 . . . . . Missiles Intercepted . | . . . . . . . . . . . . . . . . . . . . . . . . . . . . . . Alert | -11 -10 -10 -9 -9 -9 -8 -8 -7 -7 -7 -7 -7 -6 -6 -6 -6 -6 -6 -5 -5 -5 -5 -5 -5 -5 -5 -4 -4 -4 ------- Run | Jun Mat Min Mat Min Exi Min Mat Fac Was Fac Gar Fac Fac Was Fac Low Low Zio Pro Fac Was Fac Gar Fac Upp War Pro Fac Ext Peak Influence 2517 | 20 234 388 754 515 . 98 496 296 103 753 2297 2517 1227 459 651 . . . . 655 157 799 1572 1542 . . . 692 654 Initial 1227 | . 13 25 92 294 . . 37 225 103 72 527 1205 1227 429 307 . . . . 18 142 92 559 825 . . . 150 338 Average 669 | 8 103 266 558 482 . 69 242 264 103 437 1886 1755 1227 442 400 . . . . 260 143 440 1140 1145 . . . 342 445 Maximum Alert Level 5 | . 1 1 3 2 . . 2 1 . 3 5 5 4 2 2 . . . . 2 . 3 4 4 . . . 2 2 Low Security (%) 15 | 100 81 31 8 . . 100 48 . 100 12 . . . . . . . . . 37 100 21 . . . . . 7 . Level 1 22 | . 18 68 12 19 . . 30 100 . 14 . . . . 48 . . . . 37 . 11 . . . . . 57 23 Level 2 29 | . . . 66 80 . . 20 . . 63 3 . . 100 52 . . . . 25 . 55 6 . . . . 35 76 Level 3 10 | . . . 13 . . . . . . 9 10 . . . . . . . . . . 11 35 46 . . . . . Level 4 12 | . . . . . . . . . . . 4 40 100 . . . . . . . . . 57 53 . . . . . Level 5 4 | . . . . . . . . . . . 81 . . . . . . . . . . . . . . . . . . High Security 3 | . . . . . . . . . . . . 59 . . . . . . . . . . . . . . . . . Max Security . | . . . . . . . . . . . . . . . . . . . . . . . . . . . . . . Squads Dispatched 79 | . . 1 3 1 . . 2 . . 4 . 17 . . 5 . . . . 2 . 16 . 15 . . . 10 3 Investigation 25 | . . . 2 1 . . 2 . . 2 . . . . 3 . . . . 1 . 10 . 2 . . . 1 1 Extermination 13 | . . . . . . . . . . . . 1 . . 1 . . . . 1 . 2 . 2 . . . 6 . Reinforcement 16 | . . . 1 . . . . . . 1 . 1 . . . . . . . . . 2 . 7 . . . 3 1 Assault 20 | . . 1 . . . . . . . . . 15 . . . . . . . . . . . 3 . . . . 1 Garrison 5 | . . . . . . . . . . 1 . . . . 1 . . . . . . 2 . 1 . . . . . Intercept . | . . . . . . . . . . . . . . . . . . . . . . . . . . . . . . Searches Triggered 2 | . . . . . . . . . . . . . . . . . . . . . . . . . . . . 2 . Construction Impeded 5 | . . . . . . . . . . . . 1 . . . . . . . . . 1 . 1 . . . 1 1 Haulers Reinforced 4 | . . . . . . . . . . 1 . . . . . . . . . . . 1 . 2 . . . . . Active Scanning Responses . | . . . . . . . . . . . . . . . . . . . . . . . . . . . . . . Cargo Convoy Interrupts 1 | . . . . . . . . . . . . . . . . . . . . . . . . 1 . . . . . Stealth | -11 -10 -10 -9 -9 -9 -8 -8 -7 -7 -7 -7 -7 -6 -6 -6 -6 -6 -6 -5 -5 -5 -5 -5 -5 -5 -5 -4 -4 -4 --------- Run | Jun Mat Min Mat Min Exi Min Mat Fac Was Fac Gar Fac Fac Was Fac Low Low Zio Pro Fac Was Fac Gar Fac Upp War Pro Fac Ext Distress Signals 16 | . 1 . 2 1 . . . . . . . 1 . . 1 . . . . 3 . 1 . 3 . . . 1 2 Communications Jammed 2 | . . . . . . . . . . . . 2 . . . . . . . . . . . . . . . . . Distress Signals 2 | . . . . . . . . . . . . 2 . . . . . . . . . . . . . . . . . Times Spotted 538 | . 10 19 28 18 . 3 16 1 . 10 32 70 . 6 18 14 1 . 2 22 6 56 29 61 9 11 7 59 30 Peak Tracking Total 15 | . 6 3 5 7 . 3 4 1 . 3 7 15 . 6 5 6 1 . 1 7 6 5 5 9 4 4 3 10 6 Tactical Retreats 54 | . . 1 1 2 . . 1 . . . . 5 . 1 2 5 . . . 2 . 2 1 12 . . 1 14 4 Traps | -11 -10 -10 -9 -9 -9 -8 -8 -7 -7 -7 -7 -7 -6 -6 -6 -6 -6 -6 -5 -5 -5 -5 -5 -5 -5 -5 -4 -4 -4 ------- Run | Jun Mat Min Mat Min Exi Min Mat Fac Was Fac Gar Fac Fac Was Fac Low Low Zio Pro Fac Was Fac Gar Fac Upp War Pro Fac Ext Traps Triggered 27 | . . . 1 . . . . 1 . 1 2 2 1 . 1 . . . . 1 . 1 7 4 . . . 4 1 Indirectly 3 | . . . . . . . . . . . . . . . . . . . . . . . 1 2 . . . . . Trap Hack Attempts . | . . . . . . . . . . . . . . . . . . . . . . . . . . . . . . Triggered . | . . . . . . . . . . . . . . . . . . . . . . . . . . . . . . Disarmed . | . . . . . . . . . . . . . . . . . . . . . . . . . . . . . . Reprogrammed 6 | . . . . . . . . . . . . . . . . . . . . . . . . . . . . 6 . Reused 10 | . . 2 1 . . . . . . . . . . . . 2 . . . . . . . . . . . 5 . Traps Extracted . | . . . . . . . . . . . . . . . . . . . . . . . . . . . . . . Installed 7 | . . 2 1 . . . . . . . . . . . . 4 . . . . . . . . . . . . . Triggered 18 | . . 2 1 . . . . . . . . . . . . 2 . . . . . . . 1 1 6 . 5 . Most Traps Carried 1 | . . 1 1 . . . . . . . . . . . . . . . . . . . . . . . . . . Machines | -11 -10 -10 -9 -9 -9 -8 -8 -7 -7 -7 -7 -7 -6 -6 -6 -6 -6 -6 -5 -5 -5 -5 -5 -5 -5 -5 -4 -4 -4 ---------- Run | Jun Mat Min Mat Min Exi Min Mat Fac Was Fac Gar Fac Fac Was Fac Low Low Zio Pro Fac Was Fac Gar Fac Upp War Pro Fac Ext Machines Disabled 57 | . 1 . 2 . . . . . . 2 9 4 . . 7 . . . . 2 . 11 7 5 . 1 . 6 . Max in Single Turn 4 | . 1 . 1 . . . . . . 1 1 1 . . 3 . . . . 1 . 4 1 2 . 1 . 1 . Garrison Access 4 | . . . . . . . . . . . . 1 . . 1 . . . . . . 1 . 1 . . . . . Garrison Relay 6 | . . . . . . . . . . . 4 . . . . . . . . . . . 2 . . . . . . Phase Generator 1 | . . . . . . . . . . . . . . . . . . . . . . . 1 . . . . . . Machines Repaired . | . . . . . . . . . . . . . . . . . . . . . . . . . . . . . . Machines Sabotaged . | . . . . . . . . . . . . . . . . . . . . . . . . . . . . . . Overloaded Fab Kills . | . . . . . . . . . . . . . . . . . . . . . . . . . . . . . . Hacking | -11 -10 -10 -9 -9 -9 -8 -8 -7 -7 -7 -7 -7 -6 -6 -6 -6 -6 -6 -5 -5 -5 -5 -5 -5 -5 -5 -4 -4 -4 --------- Run | Jun Mat Min Mat Min Exi Min Mat Fac Was Fac Gar Fac Fac Was Fac Low Low Zio Pro Fac Was Fac Gar Fac Upp War Pro Fac Ext Machines Accessed 141 | . 7 1 15 1 5 . 6 4 . 7 2 5 . . 11 1 1 . . 4 . 26 2 11 . 10 . 13 9 Terminals 83 | . 5 1 11 1 . . 5 4 . 5 2 3 . . 5 1 . . . 3 . 13 2 6 . . . 7 9 Fabricators 11 | . . . . . . . . . . 1 . 1 . . 1 . . . . . . 6 . 1 . . . 1 . Repair Stations 8 | . 1 . 1 . . . . . . . . 1 . . 1 . . . . 1 . 1 . 1 . . . 1 . Recycling Units 6 | . 1 . 2 . . . . . . . . . . . . . . . . . . . . . . . . 3 . Scanalyzers 9 | . . . 1 . . . 1 . . . . . . . 3 . . . . . . 2 . 1 . . . 1 . Garrison Access 8 | . . . . . . . . . . 1 . . . . 1 . . . . . . 4 . 2 . . . . . Total Hacks 454 | . 18 3 46 1 50 . 21 7 . 17 5 12 . . 31 1 1 . . 17 . 97 5 31 . 28 . 41 22 Successful 228 | . 7 . 15 1 50 . 6 2 . 4 1 4 . . 18 1 1 . . 9 . 45 2 8 . 28 . 16 10 Failed 222 | . 11 3 30 . . . 15 5 . 12 4 8 . . 12 . . . . 8 . 51 3 23 . . . 25 12 Catastrophic 39 | . 1 2 4 . . . 4 2 . 2 . 2 . . 3 . . . . 2 . 6 1 5 . . . 3 2 Database Lockouts 4 | . . . 1 . . . . . . 1 . . . . 1 . . . . . . 1 . . . . . . . Manual 146 | . 11 3 21 3 1 . 10 1 . 9 . 2 . . 6 . . . . 5 . 45 . 8 . . . 16 5 Terminals 251 | . 15 3 36 1 . . 15 7 . 13 5 7 . . 14 1 . . . 10 . 55 5 15 . . . 27 22 Fabricators 29 | . . . . . . . . . . 2 . 2 . . 1 . . . . . . 17 . 3 . . . 4 . Repair Stations 26 | . 1 . 5 . . . . . . . . 3 . . 2 . . . . 7 . 4 . 2 . . . 2 . Recycling Units 10 | . 2 . 2 . . . . . . . . . . . . . . . . . . . . . . . . 6 . Scanalyzers 46 | . . . 3 . . . 6 . . . . . . . 13 . . . . . . 14 . 8 . . . 2 . Garrison Access 13 | . . . . . . . . . . 2 . . . . 1 . . . . . . 7 . 3 . . . . . Terminal Hacks 158 | . 6 . 9 1 50 . 1 2 . 3 1 1 . . 7 1 1 . . 4 . 21 2 2 . 28 . 8 10 Record 75 | . . . . . 49 . . . . . . . . . 1 1 . . . . . 1 . . . 23 . . . Part Schematic 1 | . . . . . . . . . . . . . . . . . . . . . . 1 . . . . . . . Robot Schematic 5 | . . . . 1 . . . . . 1 . . . . . . . . . 1 . 2 . . . . . . . Robot Analysis 11 | . 2 . 2 . . . 1 . . . . . . . 1 . . . . 1 . 1 . 1 . . . 1 1 Prototype ID Bank 17 | . 1 . 3 . . . . 2 . 1 . . . . 2 . . . . . . 3 . . . 4 . 1 . Open Door 10 | . . . . . . . . . . . 1 . . . . . 1 . . . . . 1 . . 1 . . 6 Branch Access Points 6 | . 1 . . . . . . . . 1 . . . . 1 . . . . . . 1 . . . . . 1 1 Emergency Access Points 1 | . . . . . . . . . . . . . . . . . . . . . . . 1 . . . . . . Machine Index 2 | . . . . . . . . . . . . . . . . . . . . 1 . 1 . . . . . . . Terminal Index 4 | . 1 . 1 . . . . . . . . . . . . . . . . . . . . . . . . 1 1 Fabricator Index 1 | . . . . . . . . . . . . 1 . . . . . . . . . . . . . . . . . Alert Level 3 | . . . 1 . . . . . . . . . . . . . . . . . . 2 . . . . . . . Unreport Threat 6 | . . . 1 . . . . . . . . . . . . . . . . 1 . 3 . 1 . . . . . Reprogram Traps 1 | . . . . . . . . . . . . . . . . . . . . . . . . . . . . 1 . Dispatch Records 1 | . . . . . . . . . . . . . . . . . . . . . . . . . . . . . 1 Recall Investigation 2 | . . . . . . . . . . . . . . . . . . . . . . 2 . . . . . . . Recall Extermination 1 | . . . . . . . . . . . . . . . . . . . . . . 1 . . . . . . . Zone Layout 10 | . 1 . 1 . . . . . . . . . . . 2 . . . . . . 3 . . . . . 3 . EX-Prototype ID Bank 1 | . . . . . 1 . . . . . . . . . . . . . . . . . . . . . . . . Fabricator Hacks 14 | . . . . . . . . . . . . 1 . . . . . . . . . 11 . 2 . . . . . Network Status 1 | . . . . . . . . . . . . . . . . . . . . . . 1 . . . . . . . Load Schematic 7 | . . . . . . . . . . . . 1 . . . . . . . . . 5 . 1 . . . . . Build 6 | . . . . . . . . . . . . . . . . . . . . . . 5 . 1 . . . . . Repair Station Hacks 17 | . 1 . 3 . . . . . . . . 2 . . 2 . . . . 5 . 2 . . . . . 2 . Scan Component 9 | . . . 2 . . . . . . . . 1 . . 1 . . . . 3 . 1 . . . . . 1 . Repair 7 | . . . 1 . . . . . . . . 1 . . 1 . . . . 2 . 1 . . . . . 1 . Refit 1 | . 1 . . . . . . . . . . . . . . . . . . . . . . . . . . . . Recycling Unit Hacks 6 | . . . 2 . . . . . . . . . . . . . . . . . . . . . . . . 4 . Process 1 | . . . . . . . . . . . . . . . . . . . . . . . . . . . . 1 . Report Inventory 1 | . . . . . . . . . . . . . . . . . . . . . . . . . . . . 1 . Retrieve Matter 1 | . . . . . . . . . . . . . . . . . . . . . . . . . . . . 1 . Retrieve Components 3 | . . . 2 . . . . . . . . . . . . . . . . . . . . . . . . 1 . Scanalyzer 28 | . . . 1 . . . 5 . . . . . . . 8 . . . . . . 9 . 3 . . . 2 . Insert Component 16 | . . . 1 . . . 2 . . . . . . . 5 . . . . . . 5 . 2 . . . 1 . Analyze 12 | . . . . . . . 3 . . . . . . . 3 . . . . . . 4 . 1 . . . 1 . Garrison Access Hacks 5 | . . . . . . . . . . 1 . . . . 1 . . . . . . 2 . 1 . . . . . Unlock Access 2 | . . . . . . . . . . 1 . . . . . . . . . . . 1 . . . . . . . Seal Access 3 | . . . . . . . . . . . . . . . 1 . . . . . . 1 . 1 . . . . . Unauthorized Hacks . | . . . . . . . . . . . . . . . . . . . . . . . . . . . . . . Terminals . | . . . . . . . . . . . . . . . . . . . . . . . . . . . . . . Fabricators . | . . . . . . . . . . . . . . . . . . . . . . . . . . . . . . Repair Stations . | . . . . . . . . . . . . . . . . . . . . . . . . . . . . . . Recycling Units . | . . . . . . . . . . . . . . . . . . . . . . . . . . . . . . Scanalyzers . | . . . . . . . . . . . . . . . . . . . . . . . . . . . . . . Garrison Access . | . . . . . . . . . . . . . . . . . . . . . . . . . . . . . . Data Cores Recovered 6 | . 2 . 1 . . . . . . . . 1 . . . . . . . 1 . 1 . . . . . . . Used 4 | . 2 . 1 . . . . . . . . . . . . . . . . 1 . . . . . . . . . Hacking Detections 105 | . 6 1 12 1 . . 6 4 . 6 1 5 . . 9 1 . . . 4 . 24 1 9 . . . 11 4 Full Trace Events 32 | . 3 1 3 1 . . 3 . . 2 1 . . . 3 . . . . 1 . 10 . 2 . . . 1 1 Feedback Events 3 | . . . . . . . . . . . 1 . . . 1 . . . . . . 1 . . . . . . . Corruption 2 | . . . . . . . . . . . 1 . . . 1 . . . . . . . . . . . . . . Hackware Fried 1 | . . . . . . . . . . . . . . . . . . . . . . 1 . . . . . . . Feedback Blocked . | . . . . . . . . . . . . . . . . . . . . . . . . . . . . . . Robot Schematics Acquired 4 | . . . . 1 . . . . . 1 . . . . . . . . . . . 2 . . . . . . . Robots Built 10 | . . . . . . . . . . . . . . . . . . . . . . 8 . 2 . . . . . Authchips . | . . . . . . . . . . . . . . . . . . . . . . . . . . . . . . Time 717 | . . . . . . . . . . . . . . . . . . . . . . 583 . 134 . . . . . Total Robot Build Rating 44 | . . . . . . . . . . . . . . . . . . . . . . 36 . 8 . . . . . Part Schematics Acquired 9 | . . . . . . . 2 . . . . . . . 2 . . . . . . 3 . 1 . . . 1 . Parts Built . | . . . . . . . . . . . . . . . . . . . . . . . . . . . . . . Authchips . | . . . . . . . . . . . . . . . . . . . . . . . . . . . . . . Time . | . . . . . . . . . . . . . . . . . . . . . . . . . . . . . . Total Part Build Rating . | . . . . . . . . . . . . . . . . . . . . . . . . . . . . . . Parts Repaired 7 | . . . 1 . . . . . . . . 1 . . 1 . . . . 2 . 1 . . . . . 1 . Time 216 | . . . 26 . . . . . . . . 25 . . 50 . . . . 57 . 8 . . . . . 50 . Parts Recycled . | . . . . . . . . . . . . . . . . . . . . . . . . . . . . . . Recycled Matter 178 | . . . . . . . . . . . . . . . . . . . . . . . . . . . . 178 . Retrieved Matter 178 | . . . . . . . . . . . . . . . . . . . . . . . . . . . . 178 . Retrieved Components 15 | . . . 9 . . . . . . . . . . . . . . . . . . . . . . . . 6 . Parts Scanalyzed 13 | . . . 1 . . . 2 . . . . . . . 4 . . . . . . 4 . 1 . . . 1 . Part Schematics Acquired 8 | . . . . . . . 2 . . . . . . . 2 . . . . . . 2 . 1 . . . 1 . Parts Damaged 3 | . . . . . . . . . . . . . . . . . . . . . . 1 . 1 . . . 1 . Bothacking | -11 -10 -10 -9 -9 -9 -8 -8 -7 -7 -7 -7 -7 -6 -6 -6 -6 -6 -6 -5 -5 -5 -5 -5 -5 -5 -5 -4 -4 -4 ------------ Run | Jun Mat Min Mat Min Exi Min Mat Fac Was Fac Gar Fac Fac Was Fac Low Low Zio Pro Fac Was Fac Gar Fac Upp War Pro Fac Ext Used RIF Installer . | . . . . . . . . . . . . . . . . . . . . . . . . . . . . . . Robots Hacked . | . . . . . . . . . . . . . . . . . . . . . . . . . . . . . . Non-combat . | . . . . . . . . . . . . . . . . . . . . . . . . . . . . . . Combat . | . . . . . . . . . . . . . . . . . . . . . . . . . . . . . . Robot Hacks Applied . | . . . . . . . . . . . . . . . . . . . . . . . . . . . . . . Relay Couplers Released 22 | . . . . . . . . . . . 14 1 . . . . . . . . . . 7 . . . . . . Machine Destruction 22 | . . . . . . . . . . . 14 1 . . . . . . . . . . 7 . . . . . . Fabnet Peak Effective % . | . . . . . . . . . . . . . . . . . . . . . . . . . . . . . . Robots Rewired 24 | . . . . . . . . . . . 3 . . . . . . . . . . . 9 . . 5 . . 7 Allies Hacked 1 | . . . . . . . . . . . . . . . . . . . . . . 1 . . . . . . . Hacks Repelled . | . . . . . . . . . . . . . . . . . . . . . . . . . . . . . . Allies | -11 -10 -10 -9 -9 -9 -8 -8 -7 -7 -7 -7 -7 -6 -6 -6 -6 -6 -6 -5 -5 -5 -5 -5 -5 -5 -5 -4 -4 -4 -------- Run | Jun Mat Min Mat Min Exi Min Mat Fac Was Fac Gar Fac Fac Was Fac Low Low Zio Pro Fac Was Fac Gar Fac Upp War Pro Fac Ext Total Allies 74 | . . 4 . . . . . . 20 . 3 4 . 1 . . . . . . . 10 9 2 . 5 . . 16 Largest Group 20 | . . 4 4 . . . . . 20 20 17 9 . 1 . . . . . . . 5 8 5 . 5 2 . 8 Highest-Rated Group 525 | . . 92 92 . . . . . 525 525 487 267 . 31 . . . . . . . 177 262 251 . 272 100 . 301 Highest-Rated Ally 159 | . . 31 31 . . . . . 35 35 32 31 . 31 . . . . . . . 65 65 65 . 68 51 . 159 Warlord Squad Rendezvous 5 | . . . . . . . . . . . . . . . . . . . . . . 2 . 3 . . . . . Muscle 2 | . . . . . . . . . . . . . . . . . . . . . . 2 . . . . . . . Geek 1 | . . . . . . . . . . . . . . . . . . . . . . . . 1 . . . . . Pyro 2 | . . . . . . . . . . . . . . . . . . . . . . . . 2 . . . . . Total Orders 11 | . . . . . . . . . . . . . . . . . . . . . . 2 5 . . . 4 . . STAY 4 | . . . . . . . . . . . . . . . . . . . . . . 1 3 . . . . . . FOLLOW 3 | . . . . . . . . . . . . . . . . . . . . . . 1 2 . . . . . . EXPLORE 4 | . . . . . . . . . . . . . . . . . . . . . . . . . . . 4 . . Ally Attacks 485 | . . 42 44 . . . . . . 29 84 54 . 7 . . . . . . . 43 27 9 . 17 7 . 122 Total Damage 11743 | . . 455 621 . . . . . . 433 1874 843 . 149 . . . . . . . 1359 656 237 . 785 294 . 4037 Kills 85 | . . 7 13 . . . . . . 6 16 4 . . . . . . . . . 10 1 2 . 9 1 . 16 Allies Corrupted 3 | . . . . . . . . . . . . 1 . . . . . . . . . . . 1 . . . . 1 Allies Melted . | . . . . . . . . . . . . . . . . . . . . . . . . . . . . . . Intel | -11 -10 -10 -9 -9 -9 -8 -8 -7 -7 -7 -7 -7 -6 -6 -6 -6 -6 -6 -5 -5 -5 -5 -5 -5 -5 -5 -4 -4 -4 ------- Run | Jun Mat Min Mat Min Exi Min Mat Fac Was Fac Gar Fac Fac Was Fac Low Low Zio Pro Fac Was Fac Gar Fac Upp War Pro Fac Ext Robot Analysis Total 11 | . 2 . 2 . . . 1 . . . . . . . 1 . . . . 1 . 1 . 1 . . . 1 1 Derelict Logs Recovered 9 | . . 2 . . . . . . . . . . . . . 1 1 1 1 . . . . . 1 . 2 . . Drone Launches 8 | . . . . . . . . . . . . . . . . . . . . . . . . . . . 8 . . Drone Recoveries 5 | . . . . . . . . . . . . . . . . . . . . . . . . . . . 5 . . Decoded 0b10 Intel 140 | . . . . . . . . . . . . . . . . . . . . 10 . 45 17 23 . . . 33 12 Traps 94 | . . . . . . . . . . . . . . . . . . . . 10 . 25 15 12 . . . 21 11 Emergency Access 43 | . . . . . . . . . . . . . . . . . . . . . . 20 1 10 . . . 12 . Exits 3 | . . . . . . . . . . . . . . . . . . . . . . . 1 1 . . . . 1 Exploration | -11 -10 -10 -9 -9 -9 -8 -8 -7 -7 -7 -7 -7 -6 -6 -6 -6 -6 -6 -5 -5 -5 -5 -5 -5 -5 -5 -4 -4 -4 ------------- Run | Jun Mat Min Mat Min Exi Min Mat Fac Was Fac Gar Fac Fac Was Fac Low Low Zio Pro Fac Was Fac Gar Fac Upp War Pro Fac Ext Turns Passed 16360 | 82 597 807 738 246 334 80 382 262 139 269 845 771 53 62 600 268 111 469 148 536 40 2381 1040 1383 145 491 461 1799 821 Spaces Moved 22069 | 48 665 991 967 282 607 120 555 395 267 460 1219 1112 107 85 1019 486 244 883 295 664 78 3338 1199 1744 209 789 466 2219 556 Core 116 | 2 . . . . . . . . . . . . . . . . . . . . . . . . . . . . 114 Treads . | . . . . . . . . . . . . . . . . . . . . . . . . . . . . . . Legs 93 | . . . . . . . . . . . . . . . . . . . . . . . . . . . . . 93 Wheels 154 | 46 108 . . . . . . . . . . . . . . . . . . . . . . . . . . . . Hover 21706 | . 557 991 967 282 607 120 555 395 267 460 1219 1112 107 85 1019 486 244 883 295 664 78 3338 1199 1744 209 789 466 2219 349 Flight . | . . . . . . . . . . . . . . . . . . . . . . . . . . . . . . Fastest Speed 38 | 50 56 56 48 48 53 53 38 38 45 45 45 40 45 40 45 45 45 45 45 43 40 38 40 51 51 51 51 42 50 Average Speed 48 | 85 62 56 48 52 53 53 49 44 45 45 45 45 45 41 45 45 45 45 45 45 43 40 42 51 51 51 51 46 90 Slowest Speed 190 | 90 80 56 52 58 53 53 53 45 45 45 45 115 45 45 45 45 45 45 48 48 45 104 92 154 51 51 51 139 190 Overloaded Moves 86 | . . . . . . . . . . . . 21 . 65 . . . . . . . . . . . . . . . Propulsion Burnouts . | . . . . . . . . . . . . . . . . . . . . . . . . . . . . . . Robots Hopped 1 | . . . . . . . . . . . . . . . . . . . . . . . 1 . . . . . . Cave-ins Triggered 1 | . . . . . . . . . . . . . . . . . . . . . . . . . 1 . . . . Exploration Rate (%) 53 | 4 77 99 86 40 90 37 43 13 89 11 83 30 4 67 35 64 43 85 56 18 73 47 87 42 27 86 77 44 43 Regions Visited 29 Branch Regions 12 Pre-discovered Areas 8 | . . 2 . . 1 . . . . . . . . . . 1 . 3 . . . . . . . . 1 . . Known Exits Taken 7 | . 1 . . . . . . . . 1 . . . . 1 . . . . . . 1 . 1 . . 1 1 . Unknown Exits Taken 14 | 1 . 1 1 1 1 1 1 . . . . 1 . . . 1 1 1 1 . . . . . 1 1 . . . Scrap Searched 18 | . . 1 . . . 1 . . . . . . . . . 2 2 4 2 . . . . . 2 . 4 . . Spaces Dug 38 | . . . 12 . . . 3 . . 3 . 4 . . . . . . . . . 6 . . . . . 10 . Terrain Destroyed 1006 | . 4 . 181 31 . 36 38 . . 6 . 16 . . 59 . . . . 92 . 130 91 99 81 70 . 59 13 Melee . | . . . . . . . . . . . . . . . . . . . . . . . . . . . . . . Projectile 260 | . . . . . . . 38 . . 6 . 16 . . . . . . . 1 . 55 17 67 . . . 47 13 AOE 744 | . 4 . 181 31 . 36 . . . . . . . . 59 . . . . 91 . 74 74 31 81 70 . 12 . Terrain Rammed . | . . . . . . . . . . . . . . . . . . . . . . . . . . . . . . Walls Destroyed . | . . . . . . . . . . . . . . . . . . . . . . . . . . . . . . Machines Disabled . | . . . . . . . . . . . . . . . . . . . . . . . . . . . . . . Actions | -11 -10 -10 -9 -9 -9 -8 -8 -7 -7 -7 -7 -7 -6 -6 -6 -6 -6 -6 -5 -5 -5 -5 -5 -5 -5 -5 -4 -4 -4 --------- Run | Jun Mat Min Mat Min Exi Min Mat Fac Was Fac Gar Fac Fac Was Fac Low Low Zio Pro Fac Was Fac Gar Fac Upp War Pro Fac Ext Total 26505 | 68 779 1172 1149 372 626 132 673 481 285 522 1513 1378 111 102 1147 529 245 959 306 863 82 4097 1560 2045 228 863 663 2753 802 Wait 2445 | . 14 114 59 74 . 8 45 75 15 28 200 137 . . 70 23 . 38 5 114 . 541 95 151 . 27 174 301 137 Move 22039 | 47 664 990 966 281 606 119 554 395 266 459 1216 1111 107 84 1018 485 243 882 294 664 77 3337 1196 1743 208 788 465 2218 556 Hop 1 | . . . . . . . . . . . . . . . . . . . . . . . 1 . . . . . . Pick Up 180 | 5 15 4 16 1 7 . 12 2 1 2 3 4 1 . 10 1 1 7 . 6 . 24 17 15 3 2 2 14 5 Fast Attach 159 | 7 6 1 7 2 . 1 1 1 1 3 1 8 1 . 1 1 . 11 . 5 2 22 8 12 2 4 3 35 13 Attach 67 | . 7 . 6 . 3 1 1 2 . . 1 . 2 . 2 1 . . . 4 2 7 7 5 1 2 . 10 3 Detach 46 | . 5 . 2 1 . . 1 1 . 1 . . . . 1 1 . 3 . 3 . 5 7 5 . 1 1 8 . Swap 133 | 1 6 7 14 3 . . 8 2 . 2 2 5 . 1 5 1 . 3 3 12 1 10 17 4 1 . 2 13 10 Drop 254 | . 17 11 22 5 10 . 17 1 2 4 2 9 . . 9 1 1 15 1 10 . 32 26 15 2 4 4 20 14 Fire 952 | 8 45 42 56 4 . 3 34 2 . 23 53 91 . 17 31 11 . . 3 45 . 118 81 88 11 9 12 130 35 Melee . | . . . . . . . . . . . . . . . . . . . . . . . . . . . . . . Ram 3 | . . 1 . 1 . . . . . . . . . . . . . . . . . 1 . . . . . . . Kick . | . . . . . . . . . . . . . . . . . . . . . . . . . . . . . . Crush . | . . . . . . . . . . . . . . . . . . . . . . . . . . . . . . Escape Stasis 115 | . . . . . . . . . . . 26 13 . . . . . . . . . . 52 7 . . . 4 13 Rewire 104 | . . . . . . . . . . . 9 . . . . . . . . . . . 53 . . 26 . . 16 Trap 7 | . . 2 1 . . . . . . . . . . . . 4 . . . . . . . . . . . . . Miscellaneous . | . . . . . . . . . . . . . . . . . . . . . . . . . . . . . . Route ------- -11/Junkyard -10/Materials (discovered 4 exits: *Mat x2 / *Min x2) -10/Mines (discovered 2 exits: *Mat x2) -9/Materials (discovered 5 exits: *Mat x3 / *Min x2) -9/Mines (discovered 2 exits: *Mat / *Exi) -9/Exiles -8/Mines (discovered 2 exits: *Mat x2) -8/Materials (discovered 2 exits: *Fac x2) -7/Factory -7/Waste -7/Factory (discovered 3 exits: Low x2 / Gar) -7/Garrison (discovered 4 exits: [*Fac x3] / *Fac) -7/Factory -6/Factory -6/Waste -6/Factory (discovered 2 exits: *Low x2) -6/Lower Caves -6/Lower Caves -6/Zion -5/Proximity Caves -5/Factory (discovered 3 exits: Fac x2 / *Upp) -5/Waste -5/Factory (discovered 3 exits: Upp x2 / Gar) -5/Garrison (discovered 3 exits: *Fac x3) -5/Factory (discovered 2 exits: *Fac / *Upp) -5/Upper Caves -5/Warlord -4/Proximity Caves -4/Factory (discovered 6 exits: *Res x2 / *Upp x2 / *Ext x2) -4/Extension (discovered 2 exits: Res / Cet) History --------- Turn | Location | Event 28 | -11/Junkyard | Discovered new exit (range 14) 83 | -11/Junkyard | Entered Materials 151 | -10/Materials | Identified exit to Mines 297 | -10/Materials | Lost 4 parts (2p1n1u) 326 | -10/Materials | Build established: Mutant 350 | -10/Materials | Discovered new exit (range 8) 440 | -10/Materials | Discovered new exit (range 18) 680 | -10/Materials | Entered Mines 702 | -10/Mines | Escorted by a lone wolf Derelict 705 | -10/Mines | Discovered new exit (range 7) 722 | -10/Mines | Learned location of Storage (-8) 796 | -10/Mines | A weapon hastily lodged in a ceiling crevice suddenly fell to the ground 854 | -10/Mines | Core integrity fell below 50% 904 | -10/Mines | Discovered new exit (range 6) 973 | -10/Mines | Learned Materials security intel 1080 | -10/Mines | Build established: Scavenger-Mutant 1113 | -10/Mines | Met a Derelict testing a Signal Generator 1117 | -10/Mines | Found Signal Generator 1170 | -10/Mines | Found a hidden stash of uninstalled traps 1487 | -10/Mines | Entered Materials 1487 | -9/Materials | Accompanied by 4 allies 1487 | -9/Materials | Evolved 2 slots: Propulsion x2 1492 | -9/Materials | Led the pair of lost Derelicts to an unsafe place 1702 | -9/Materials | Discovered new exit (range 14) 1722 | -9/Materials | Discovered new exit (range 16) 1759 | -9/Materials | Central database locked down 1840 | -9/Materials | Discovered new exit (range 16) 1979 | -9/Materials | Discovered new exit (range 7) 2079 | -9/Materials | Repaired Hover Unit 2083 | -9/Materials | Discovered new exit (range 10) 2225 | -9/Materials | Entered Mines 2226 | -9/Mines | Assembled infested the area 2246 | -9/Mines | Build established: Mutant 2254 | -9/Mines | Met 8R-AWN 2269 | -9/Mines | Discovered new exit (range 15) 2275 | -9/Mines | Received a Rocket Launcher from a helpful Derelict 2469 | -9/Mines | Discovered new exit (range 5) 2471 | -9/Mines | Entered Exiles 2486 | -9/Exiles | Welcomed by 8R-AWN 2495 | -9/Exiles | Met EX-HEX 2510 | -9/Exiles | Met EX-BIN 2518 | -9/Exiles | Aligned with FarCom system 2518 | -9/Exiles | Given EX-Vault access code 2539 | -9/Exiles | Opened EX-Vault 2545 | -9/Exiles | Found Gui. Plasma Cannon 2547 | -9/Exiles | Found XL Autogun Array 2561 | -9/Exiles | Warned to stay clear of 0b10 Research branches 2575 | -9/Exiles | Met EX-DEC 2579 | -9/Exiles | Learned location of Zion (-6) 2607 | -9/Exiles | Visited The Gauntlet 2800 | -9/Exiles | Discovered new exit (range 11) 2805 | -9/Exiles | Left Exiles lab with XL Autogun Array 2805 | -9/Exiles | Entered Mines 2820 | -8/Mines | Discovered new exit (range 7) 2864 | -8/Mines | Discovered new exit (range 11) 2885 | -8/Mines | Entered Materials 2885 | -8/Materials | Evolved 2 slots: Weapon x2 3029 | -8/Materials | Discovered new exit (range 16) 3181 | -8/Materials | Build established: Skirmisher 3255 | -8/Materials | Discovered new exit (range 7) 3267 | -8/Materials | Entered Factory 3267 | -7/Factory | Evolved 2 slots: Utility x2 3529 | -7/Factory | Sucked down chute 3529 | -7/Factory | Entered Waste 3530 | -7/Waste | Joined by Warlord forces that had cleared the area 3632 | -7/Waste | Discovered new exit (range 11) 3668 | -7/Waste | Entered Factory 3668 | -7/Factory | Accompanied by 20 allies 3687 | -7/Factory | Identified exit to Lower Caves 3737 | -7/Factory | Garrison activated, responded to threat 3760 | -7/Factory | Identified exit to Garrison 3901 | -7/Factory | Central database locked down 3937 | -7/Factory | Entered Garrison 3937 | -7/Garrison | Accompanied by 15 allies 3938 | -7/Garrison | Triggered checkpoint 4046 | -7/Garrison | Triggered checkpoint 4064 | -7/Garrison | Triggered checkpoint 4064 | -7/Garrison | Build established: Gunner 4091 | -7/Garrison | Triggered checkpoint 4092 | -7/Garrison | Triggered checkpoint 4113 | -7/Garrison | Destroyed 7 combat bots 4206 | -7/Garrison | Triggered checkpoint 4218 | -7/Garrison | Discovered new exit (range 13) 4238 | -7/Garrison | Triggered checkpoint 4249 | -7/Garrison | Discovered new exit (range 5) 4319 | -7/Garrison | Triggered checkpoint 4333 | -7/Garrison | Discovered new exit (range 15) 4371 | -7/Garrison | Garrison Relay disabled 4409 | -7/Garrison | Garrison Relay disabled 4445 | -7/Garrison | Discovered new exit (range 15) 4476 | -7/Garrison | Triggered checkpoint 4487 | -7/Garrison | Garrison Relay disabled 4546 | -7/Garrison | Garrison Relay disabled 4642 | -7/Garrison | Attempted to access garrison exit controls, blocked by remote lockdown 4782 | -7/Garrison | Entered Factory 4782 | -7/Factory | Accompanied by 9 allies 4894 | -7/Factory | Repaired Cmb. Airjet 5098 | -7/Factory | High security lockdown imminent 5178 | -7/Factory | High security lockdown engaged 5546 | -7/Factory | Discovered new exit (range 16) 5553 | -7/Factory | Entered another Factory area 5553 | -6/Factory | Evolved 2 slots: Utility x2 5606 | -6/Factory | Sucked down chute 5606 | -6/Factory | Entered Waste 5607 | -6/Waste | Met a frightened Derelict 5614 | -6/Waste | Spotted C-40 Crusher 5618 | -6/Waste | Spotted C-40 Crusher 5619 | -6/Waste | Spotted C-40 Crusher 5622 | -6/Waste | Spotted C-40 Crusher 5623 | -6/Waste | Spotted C-40 Crusher 5629 | -6/Waste | Spotted C-40 Crusher 5631 | -6/Waste | Discovered new exit (range 13) 5641 | -6/Waste | Destroyed C-40 Crusher 5656 | -6/Waste | Destroyed C-40 Crusher 5668 | -6/Waste | Entered Factory 5831 | -6/Factory | Repaired Lgt. Angular Momentum Engine 6122 | -6/Factory | Identified exit to Lower Caves 6122 | -6/Factory | Central database locked down 6241 | -6/Factory | Garrison activated, responded to threat 6268 | -6/Factory | Entered Lower Caves 6274 | -6/Lower Caves | Met a Warlord Commander 6275 | -6/Lower Caves | Learned location of Warlord (-5) 6279 | -6/Lower Caves | Found Unknown Device 6300 | -6/Lower Caves | Spotted B-75 Beast 6510 | -6/Lower Caves | Learned 8 Factory zone layouts 6530 | -6/Lower Caves | Discovered new exit (range 6) 6536 | -6/Lower Caves | Entered another Lower Caves area 6585 | -6/Lower Caves | Learned 4 Factory zone layouts 6588 | -6/Lower Caves | Spotted B-75 Beast 6617 | -6/Lower Caves | Discovered new exit (range 3) 6647 | -6/Lower Caves | Entered Zion 6672 | -6/Zion | Discovered new exit (range 11) 6701 | -6/Zion | Found Prototype Launcher 6701 | -6/Zion | Identified Gui. Missile Launcher 6713 | -6/Zion | System corruption cleaned by Quarantine Array 6740 | -6/Zion | Learned location of Quarantine (-2) 6781 | -6/Zion | Learned Factory emergency access door positions 6788 | -6/Zion | Learned location of Armory (-3) 6838 | -6/Zion | Found Prototype Processor 6838 | -6/Zion | Identified Spectral Analyzer 6840 | -6/Zion | Found Prototype Processor 6840 | -6/Zion | Identified Exp. Core Analyzer 6851 | -6/Zion | Found Prototype Processor 6851 | -6/Zion | Identified Exp. Terrain Scan Processor 6886 | -6/Zion | Rebuked by Imprinter 6904 | -6/Zion | Found GAL Module 7020 | -6/Zion | Found Prototype Special Weapon 7116 | -6/Zion | Entered Proximity Caves 7145 | -5/Proximity Caves | Identified RU-N14's Throwing Claymores 7160 | -5/Proximity Caves | Learned Factory terminal intel 7261 | -5/Proximity Caves | Discovered new exit (range 7) 7263 | -5/Proximity Caves | Attracted the attention of an 0b10 checkpoint 7264 | -5/Proximity Caves | Entered Factory 7264 | -5/Factory | Evolved 2 slots: Utility x2 7264 | -5/Factory | Identified Encrypted Comm Array 7265 | -5/Factory | Identified exit to Factory 7267 | -5/Factory | Loaded intel: 26 terminal locations 7525 | -5/Factory | Repaired Imp. Airjet 7549 | -5/Factory | Repaired Matter Filter 7727 | -5/Factory | Discovered new exit (range 13) 7741 | -5/Factory | Build established: Hacker-Gunner 7800 | -5/Factory | Sucked down chute 7800 | -5/Factory | Entered Waste 7809 | -5/Waste | Spotted C-40 Crusher 7811 | -5/Waste | Spotted C-40 Crusher 7815 | -5/Waste | EMP discharged 7816 | -5/Waste | Spotted C-40 Crusher 7819 | -5/Waste | Spotted C-40 Crusher 7819 | -5/Waste | Spotted C-40 Crusher 7824 | -5/Waste | Crushed by Compactor (1 part destroyed, 2 dropped) 7828 | -5/Waste | Crushed by Compactor (1 part destroyed, 1 dropped) 7829 | -5/Waste | Crushed by Compactor (1 part destroyed, 1 dropped) 7830 | -5/Waste | Spotted C-40 Crusher 7833 | -5/Waste | Discovered new exit (range 14) 7840 | -5/Waste | Entered Factory 7860 | -5/Factory | Lost 4 parts (1n1u2w) 7889 | -5/Factory | Identified exit to Upper Caves 8051 | -5/Factory | Build established: Hacker-Mutant 8236 | -5/Factory | Fabricated P-60 Hacker? 8255 | -5/Factory | Central database locked down 8298 | -5/Factory | Joined by Warlord Muscle squad 8315 | -5/Factory | Imp. Hacking Suite fried by hacking feedback 8586 | -5/Factory | P-70 Sage assimilated allied KY-J9R(l) 8621 | -5/Factory | Fabricated P-60 Hacker (x2) 8666 | -5/Factory | Fabricated P-60 Hacker (x2) 8858 | -5/Factory | Joined by Warlord Muscle squad 9051 | -5/Factory | Build established: Hacker-Skirmisher 9170 | -5/Factory | Fabricated I-47 Archangel (x1) 9211 | -5/Factory | Garrison activated, responded to threat 9267 | -5/Factory | Garrison activated, responded to threat 9830 | -5/Factory | Identified exit to Garrison 10054 | -5/Factory | Fabricated I-47 Archangel (x1) 10193 | -5/Factory | Repaired Sml. Storage Unit 10221 | -5/Factory | Entered Garrison 10221 | -5/Garrison | Accompanied by 2 allies 10225 | -5/Garrison | Triggered checkpoint 10262 | -5/Garrison | Triggered checkpoint 10269 | -5/Garrison | Triggered checkpoint 10444 | -5/Garrison | Spotted B-75 Beast 10456 | -5/Garrison | Triggered checkpoint 10457 | -5/Garrison | Triggered checkpoint 10464 | -5/Garrison | Destroyed B-75 Beast 10502 | -5/Garrison | Triggered checkpoint 10644 | -5/Garrison | Discovered new exit (range 14) 10658 | -5/Garrison | Triggered checkpoint 10848 | -5/Garrison | Phase Generator disabled 10869 | -5/Garrison | Build established: Hacker-Gunner 10914 | -5/Garrison | Triggered checkpoint 10971 | -5/Garrison | Discovered new exit (range 14) 10999 | -5/Garrison | Identified exit to Factory 11059 | -5/Garrison | Garrison Relay disabled 11060 | -5/Garrison | Triggered checkpoint 11091 | -5/Garrison | Spotted B-75 Beast 11101 | -5/Garrison | Garrison Relay disabled 11186 | -5/Garrison | Destroyed B-75 Beast 11242 | -5/Garrison | Spotted B-75 Beast 11261 | -5/Garrison | Entered Factory 11261 | -5/Factory | Accompanied by 5 allies 11332 | -5/Factory | Joined by Warlord Pyro squad 11445 | -5/Factory | Build established: Commander-Gunner 11541 | -5/Factory | Joined by Warlord Geek squad 11635 | -5/Factory | P-70 Sage assimilated allied 58-Q13(i) 11757 | -5/Factory | Build established: Gunner 11861 | -5/Factory | First assault squad dispatched 11898 | -5/Factory | Garrison activated, responded to threat 11922 | -5/Factory | Core integrity fell below 50% 11972 | -5/Factory | Lost 4 parts (1p1u2w) 12430 | -5/Factory | Fabricated P-60 Hacker? 12431 | -5/Factory | Cargo convoy interrupted 12501 | -5/Factory | Discovered exit to Upper Caves (range 15) 12533 | -5/Factory | Joined by Warlord Pyro squad 12644 | -5/Factory | Entered Upper Caves 12685 | -5/Upper Caves | Learned 8 Factory zone layouts 12699 | -5/Upper Caves | Crushed by falling debris 12699 | -5/Upper Caves | Core integrity fell below 20% 12730 | -5/Upper Caves | Lost 3 parts (3u) 12742 | -5/Upper Caves | Build established: Hacker-Mutant 12786 | -5/Upper Caves | A Derelict revealed a hidden shortcut to "reach the base" 12789 | -5/Upper Caves | Attracted the attention of an 0b10 checkpoint 12789 | -5/Upper Caves | Entered Warlord 12806 | -5/Warlord | System corruption cleaned by Quarantine Array 12867 | -5/Warlord | Met Warlord 12892 | -5/Warlord | Warlord's base attacked by MAIN.C 13037 | -5/Warlord | Found Prototype Piercing Weapon 13037 | -5/Warlord | Identified Vortex Lance 13091 | -5/Warlord | Learned Testing security intel 13091 | -5/Warlord | Learned Factory scanalyzer intel 13091 | -5/Warlord | Learned Armory recycling unit intel 13091 | -5/Warlord | Learned Research repair station intel 13091 | -5/Warlord | Learned 4 Research zone layouts 13091 | -5/Warlord | Learned 4 Access zone layouts 13091 | -5/Warlord | Learned Armory trap positions 13091 | -5/Warlord | Learned Quarantine trap positions 13151 | -5/Warlord | Warlord forces counterattacked 13195 | -5/Warlord | Discovered new exit (range 12) 13210 | -5/Warlord | Spotted Striker 13211 | -5/Warlord | Allies destroyed Striker 13280 | -5/Warlord | Entered Proximity Caves 13280 | -4/Proximity Caves | Accompanied by 2 allies 13348 | -4/Proximity Caves | Attracted the attention of an 0b10 checkpoint 13494 | -4/Proximity Caves | Learned location of Testing (-3) 13562 | -4/Proximity Caves | Spotted B-86 Titan 13589 | -4/Proximity Caves | Spotter reported a threat 13612 | -4/Proximity Caves | Learned Research emergency access door positions 13726 | -4/Proximity Caves | Discovered exit to Factory (range 15) 13741 | -4/Proximity Caves | Entered Factory 13741 | -4/Factory | Evolved 2 slots: Propulsion x1, Utility x1 13743 | -4/Factory | Loaded intel: 4 scanalyzer locations 14178 | -4/Factory | Found Prototype Processor 14178 | -4/Factory | Identified Exp. Signal Interpreter 14465 | -4/Factory | Discovered new exit (range 16) 14536 | -4/Factory | Search patrols dispatched 14925 | -4/Factory | Lost 5 parts (1n3u1w) 14925 | -4/Factory | Identified exit to Upper Caves 14925 | -4/Factory | Identified exit to Extension 15013 | -4/Factory | Repaired Magnetic Acceleration Cannon 15016 | -4/Factory | Search patrols dispatched 15019 | -4/Factory | Spotted B-86 Titan 15283 | -4/Factory | Discovered new exit (range 11) 15456 | -4/Factory | Discovered new exit (range 15) 15477 | -4/Factory | Lost 6 parts (3n2u1w) 15540 | -4/Factory | Entered Extension 15576 | -4/Extension | Rescued a captive Derelict 15590 | -4/Extension | Identified exit to Cetus 15790 | -4/Extension | First assault squad dispatched 15839 | -4/Extension | Rescued a captive Derelict 15840 | -4/Extension | Rescued a captive Derelict 15964 | -4/Extension | Rescued A7 16101 | -4/Extension | Build established: Scavenger-Gunner 16167 | -4/Extension | Rescued a captive Derelict 16168 | -4/Extension | Rescued a captive Derelict 16229 | -4/Extension | Rescued a captive Derelict 16229 | -4/Extension | Rescued a captive Derelict 16231 | -4/Extension | Spotted B-86 Titan 16235 | -4/Extension | Spotted B-86 Titan 16245 | -4/Extension | Identified exit to Research 16249 | -4/Extension | Core integrity fell below 50% 16273 | -4/Extension | Core integrity fell below 20% 16279 | -4/Extension | Rescued a captive Derelict 16300 | -4/Extension | Lost 14 parts (1p5n3u5w) 16361 | -4/Extension | Destroyed by B-86 Titan with Railgun Last Messages --------------- like twenty." 16285_ Connecting with Terminal... 16292_ Connecting with Door Terminal... 16292_ ALERT: Suspicious activity at Terminal E011. Dispatching Investigation squad. 16297_ Acquired Phase Gun. 16312_ Slug penetrates Wall. 16319_ >> DECODED: Stasis Trap location. 16335_ Penetrated by Slug. 16340_ Terminal disabled. 16345_ >> DECODED: Stasis Trap location. 16347_ Slug penetrates Wall. 16352_ Acquired 10 matter. 16353_ Slug penetrates Wall. 16358_ Penetrated by Slug. 16358_ Slug penetrates Wall. 16359_ Penetrated by Slug. 16359_ Phase Gun destroyed. 16361_ Penetrated by Slug. [Achievement: Punisher] Map ----- +----------------------------------------------------+ | #????????# #??????????? | | ########### #????????# #?#####????? | | ??????????# #????????# ### ##^#?? | | ??????????# #????????# ^^ #?? | | ??????????# #????????# ################## ####?? | | ??????????# #????????# #????????????????#####????? | | ??????????# #????????# #?????????????????????????? | | ??????????# #????????# #?????????????????????????? | | ??????????# #????????# #?????????????????????????? | | ??????????# #????????# #?????????????????????????? | | ?????????## #????????# #####?????????????????????? | | ????????### #????????# #?????????????????????? | | ??????###!#^#????????# #T###?????????????????????? | | ??????# %#[#????????# ###???????????????????????? | | ??????# =*[#????????# #?????????????????????????? | | ??????###T#!#????????#%#?????????????????????????? | | ????????###%#????????#%#?????????????????????????? | | ??????????# #????????#=#?????????????????????????? | | ?????????## #????????#/#?????????????????????????? | | ???????###" #?######?#%#?????????????????????????? | | ??????# ###!### ## ### ###???????????????????????? | | ????????#%%%!BB=% u " ""#???????????????????????? | | ????????#%!$!BB " ##??????????????????????? | | ????????# %%! "#??????????????????????? | | ???????## % ##??????????????????????? | | ???????## @#??????????????????????? | | ?????? ?????????????????????? | | ????? % ???????????????????? | | ??? % % ?????????????????? | | ?? %%! ???????????????? | | ?? = % A t t ?????????????? | | ??####### BB ############????????????? | | ????????# BB #???????????????????????? | | ????????# #???????????????????????? | | ????????# #???????????????????????? | | ????????# #???????????????????????? | | ?????????#####T#"""#######???????????????????????? | | ?????????????????